[Event "DVM U14 2021"]
[Site "Willingen"]
[Date "2022.08.15"]
[Round "6"]
[White "Klein, Maxim"]
[Black "Römer, Uri"]
[Result "0-1"]
[ECO "D35"]
[WhiteElo "1323"]
[BlackElo "1485"]
[Annotator "NA RC"]
[PlyCount "64"]
[EventDate "2022.08.12"]
[EventType "team-tourn"]
[EventRounds "7"]
[EventCountry "GER"]
[SourceTitle "playchess.com"]
[Source "ChessBase"]
[SourceQuality "1"]
[TimeControl "40/5400+30:1800+30"]

1. d4 {[%emt 0:00:11]} d5 {[%emt 0:00:00]} 2. c4 {[%emt 0:00:06]} e6 {[%emt 0:00:03]} 3. Nc3 {[%emt 0:00:27]} c5 {[%emt 0:00:20]} 4. e3 {[%emt 0:01:32]} Nf6 {[%emt 0:02:18]} 5. Bd3 {[%emt 0:00:52]} a6 {[%emt 0:01:00]} 6. cxd5 {[%emt 0:01:09]} exd5 {[%emt 0:04:58]} 7. Nge2 {[%emt 0:03:11]} Nc6 {[%emt 0:05:50]} 8. a3 {[%emt 0:03:10]} Bg4 {[%emt 0:05:26]} 9. Qc2 {[%emt 0:03:32]} Qd7 {[%emt 0:03:41]} 10. h3 {[%emt 0:05:20]} c4 {[%emt 0:02:51]} 11. hxg4 {[%emt 0:01:24]} cxd3 {[%emt 0:00:08]} 12. Qxd3 {[%emt 0:01:09]} Qxg4 {[%emt 0:08:48]} 13. Nf4 {[%emt 0:05:37]} Bd6 {[%emt 0:06:32]} 14. Ncxd5 {[%emt 0:02:27]} Nxd5 {[%emt 0:03:31]} 15. Nxd5 {[%emt 0:01:55]} Qxg2 {[%emt 0:08:53]} 16. Rh5 {[%emt 0:05:32]} g6 {[%emt 0:00:25]} 17. Nf6+ {[%emt 0:00:43]} Ke7 {[%emt 0:00:11]} 18. Rd5 {[%emt 0:02:12]} Kxf6 {[%emt 0:16:55]} 19. Rxd6+ {[%emt 0:00:17]} Ke7 {[%emt 0:10:41]} 20. Rxc6 {[%emt 0:01:46]} Qxc6 {[%emt 0:00:12]} 21. e4 {[%emt 0:01:38]} Rac8 {[%emt 0:03:19]} 22. Bg5+ {[%emt 0:03:00]} f6 {[%emt 0:02:47]} 23. Bh4 {[%emt 0:04:47]} g5 {[%emt 0:00:06]} 24. Bg3 {[%emt 0:00:30]} Qc2 {[%emt 0:06:25]} 25. Qxc2 {[%emt 0:00:26]} Rxc2 {[%emt 0:00:02]} 26. Rb1 {[%emt 0:01:52]} h5 {[%emt 0:00:50]} 27. d5 {[%emt 0:01:05]} h4 {[%emt 0:00:38]} 28. Bh2 {[%emt 0:01:11]} Kd7 {[%emt 0:03:09]} 29. Bg1 {[%emt 0:04:27]} g4 {[%emt 0:01:05]} 30. Kd1 {[%emt 0:01:21]} Rhc8 {[%emt 0:02:09]} 31. f4 {[%emt 0:00:27]} gxf3 {[%emt 0:00:18]} 32. Ke1 {[%emt 0:00:52]} h3 0-1

[Event "DVM U14 2021"]
[Site "Willingen"]
[Date "2022.08.15"]
[Round "6"]
[White "Menne, Lukas"]
[Black "Borgert, Alexander"]
[Result "1/2-1/2"]
[ECO "D02"]
[WhiteElo "1190"]
[BlackElo "1477"]
[Annotator "NA RC"]
[PlyCount "117"]
[EventDate "2022.08.12"]
[EventType "team-tourn"]
[EventRounds "7"]
[EventCountry "GER"]
[SourceTitle "playchess.com"]
[Source "ChessBase"]
[SourceQuality "1"]
[TimeControl "40/5400+30:1800+30"]

1. d4 {[%emt 0:00:02]} d5 {[%emt 0:00:04]} 2. Bf4 {[%emt 0:00:06]} Nf6 {[%emt 0:00:07]} 3. Nf3 {[%emt 0:00:13]} c5 {[%emt 0:00:14]} 4. e3 {[%emt 0:00:08]} Qb6 {[%emt 0:00:20]} 5. Qc1 {[%emt 0:02:49]} Nc6 {[%emt 0:00:21]} 6. c3 {[%emt 0:00:40]} c4 {[%emt 0:00:10]} 7. Be2 {[%emt 0:01:54]} Bf5 {[%emt 0:00:12]} 8. O-O {[%emt 0:01:17]} Qd8 {[%emt 0:00:23]} 9. Nbd2 {[%emt 0:00:59]} e6 {[%emt 0:00:06]} 10. Ne5 {[%emt 0:02:12]} Nxe5 {[%emt 0:03:31]} 11. dxe5 {[%emt 0:01:29]} Nd7 {[%emt 0:00:22]} 12. Nf3 {[%emt 0:00:45]} Bg4 {[%emt 0:01:54]} 13. Nd4 {[%emt 0:00:53]} Bxe2 {[%emt 0:00:13]} 14. Nxe2 {[%emt 0:00:09]} g5 {[%emt 0:00:11]} 15. Bg3 {[%emt 0:00:29]} h5 {[%emt 0:00:14]} 16. h3 {[%emt 0:00:49]} g4 {[%emt 0:01:07]} 17. Nf4 {[%emt 0:02:42]} h4 {[%emt 0:03:41]} 18. Bh2 {[%emt 0:00:29]} Qg5 {[%emt 0:00:32]} 19. hxg4 {[%emt 0:02:52]} Qxg4 {[%emt 0:02:13]} 20. f3 {[%emt 0:03:43]} Qf5 {[%emt 0:01:17]} 21. Qb1 {[%emt 0:04:30]} Qxb1 {[%emt 0:00:50]} 22. Raxb1 {[%emt 0:00:24]} Nxe5 {[%emt 0:00:12]} 23. Nxe6 {[%emt 0:00:39]} Nxf3+ {[%emt 0:00:10]} 24. Rxf3 {[%emt 0:00:23]} fxe6 {[%emt 0:00:13]} 25. Rbf1 {[%emt 0:00:48]} Bc5 {[%emt 0:01:42]} 26. Kf2 {[%emt 0:02:43]} O-O-O {[%emt 0:01:28]} 27. Ke2 {[%emt 0:00:57]} Rhg8 {[%emt 0:00:17]} 28. g3 {[%emt 0:03:02]} hxg3 {[%emt 0:00:37]} 29. Bxg3 {[%emt 0:01:26]} Rdf8 {[%emt 0:00:09]} 30. Rxf8+ {[%emt 0:03:16]} Rxf8 {[%emt 0:00:06]} 31. Rxf8+ {[%emt 0:04:41]} Bxf8 {[%emt 0:00:07]} 32. Be5 {[%emt 0:04:32]} Kd7 {[%emt 0:00:10]} 33. Bd4 {[%emt 0:00:35]} Kc7 {[%emt 0:00:46]} 34. Bxa7 {[%emt 0:07:41]} b6 {[%emt 0:00:06]} 35. Bxb6+ {[%emt 0:00:08]} Kxb6 {[%emt 0:00:07]} 36. e4 {[%emt 0:01:37]} Bh6 {[%emt 0:00:26]} 37. exd5 {[%emt 0:01:08]} exd5 {[%emt 0:00:08]} 38. Kd1 {[%emt 0:01:37]} Kb5 {[%emt 0:00:12]} 39. Kc2 {[%emt 0:00:19]} Bg7 {[%emt 0:00:18]} 40. b3 {[%emt 0:03:18]} Ka5 {[%emt 0:01:17]} 41. Kd2 {[%emt 0:45:02]} Bh6+ {[%emt 0:32:10]} 42. Kc2 {[%emt 0:02:22]} Be3 {[%emt 0:00:16]} 43. Kd1 {[%emt 0:17:26]} d4 {[%emt 0:00:08]} 44. cxd4 {[%emt 0:00:56]} c3 {[%emt 0:00:05]} 45. d5 {[%emt 0:00:46]} Kb5 {[%emt 0:00:16]} 46. d6 {[%emt 0:00:26]} Kc6 {[%emt 0:00:05]} 47. Kc2 {[%emt 0:01:22]} Bd4 {[%emt 0:00:05]} 48. d7 {[%emt 0:00:47]} Kxd7 {[%emt 0:00:04]} 49. b4 {[%emt 0:00:54]} Kc6 {[%emt 0:00:10]} 50. a4 {[%emt 0:00:44]} Kb6 {[%emt 0:00:10]} 51. Kb3 {[%emt 0:00:40]} Kc6 {[%emt 0:00:09]} 52. Kc2 {[%emt 0:00:37]} Kd5 {[%emt 0:00:11]} 53. Kd3 {[%emt 0:01:02]} Be5 {[%emt 0:00:27]} 54. a5 {[%emt 0:00:38]} Kc6 {[%emt 0:00:35]} 55. a6 {[%emt 0:00:48]} Kb6 {[%emt 0:00:18]} 56. b5 {[%emt 0:00:20]} Bd4 {[%emt 0:00:23]} 57. Kc2 {[%emt 0:00:22]} Kxb5 {[%emt 0:05:04]} 58. a7 {[%emt 0:00:30]} Bxa7 {[%emt 0:00:05]} 59. Kxc3 {[%emt 0:00:08]} 1/2-1/2

[Event "DVM U14 2021"]
[Site "Willingen"]
[Date "2022.08.15"]
[Round "6"]
[White "Dickel, Karl-Joachim"]
[Black "Jones, Richard S."]
[Result "1/2-1/2"]
[ECO "C50"]
[WhiteElo "1178"]
[BlackElo "2394"]
[Annotator "TA"]
[PlyCount "54"]
[EventDate "2022.08.12"]
[EventType "team-tourn"]
[EventRounds "7"]
[EventCountry "GER"]
[SourceTitle "playchess.com"]
[Source "ChessBase"]
[SourceQuality "1"]
[TimeControl "40/5400+30:1800+30"]

{[%evp 14,54,2,0,4,-66,-68,-60,-61,-58,-37,-103,-37,-119,-25,-25,-27,-26,-12,-46,-33,-49,-37,-55,-23,-21,-13,-20,9,0,0,0,0,0,22,0,0,0,0,0,0,0,0]} 1. e4 {[%emt 0:00:01]} e5 {[%emt 0:00:05]} 2. Nf3 {[%emt 0:00:05]} Nc6 {[%emt 0:00:03]} 3. Bc4 {[%emt 0:00:07]} Bc5 {[%emt 0:00:30]} 4. Nc3 {[%emt 0:00:10]} d6 {[%emt 0:00:25]} 5. h3 {[%emt 0:00:22]} Nf6 {[%emt 0:00:18]} 6. d3 {[%emt 0:00:23]} h6 {[%emt 0:00:09]} 7. O-O {[%emt 0:00:20] The old main line.} O-O {[%emt 0:01:34]} 8. Nd5 {[%emt 0:00:15]} Na5 {[%emt 0:02:38] C50: Hungarian Defence and Giuoco Pianissimo.} 9. a3 {[%emt 0:01:11]} ({Better is} 9. b4 $11 Nxd5 10. bxc5) 9... Nxc4 $15 {[%emt 0:00:37] [#]} 10. Nxf6+ $146 {[%emt 0:00:29]} ({Predecessor:} 10. dxc4 a6 11. b4 Ba7 12. Nxf6+ Qxf6 13. Qd3 Qg6 14. Nh2 f5 15. Be3 fxe4 16. Qd5+ {0-1 (25) Borda Rodas,A-Ojeda Labayru,D (1359) Buenos Aires 2015}) 10... Qxf6 {[%emt 0:00:10] Black is slightly better.} 11. dxc4 {[%emt 0:00:03]} a6 {[%emt 0:01:10]} 12. Re1 {[%emt 0:00:30] [#]} ({White should try} 12. Qd3 $15) 12... Be6 {[%emt 0:01:40]} (12... Qg6 $1 $17 {...Bxh3 is the strong threat.} 13. b4 Ba7) 13. b3 {[%emt 0:00:20]} (13. Qd3 $15) 13... Rad8 {[%emt 0:02:07]} (13... Qg6 $17 {Strongly threatening ...Bxh3.} 14. g4 h5) 14. Be3 $11 {[%emt 0:00:12]} Bxe3 {[%emt 0:00:29]} 15. Rxe3 {[%emt 0:00:14]} Qe7 {[%emt 0:04:16]} 16. Rd3 {[%emt 0:01:02]} f5 {[%emt 0:04:01]} 17. Qe1 {[%emt 0:01:00]} Kh8 {[%emt 0:01:04] White must now prevent ...fxe4.} 18. Nd2 {[%emt 0:02:29]} fxe4 {[%emt 0:01:52]} 19. Nxe4 {[%emt 0:01:59]} Bf5 {[%emt 0:03:52] The position is equal.} 20. f3 {[%emt 0:00:22]} c6 {[%emt 0:03:18] [#] Threatens to win with ...d5.} 21. Qb4 {[%emt 0:01:27][%cal Rd3d6]} Bxe4 {[%emt 0:02:13]} 22. fxe4 {[%emt 0:00:07]} c5 {[%emt 0:02:44]} 23. Qd2 {[%emt 0:00:38]} Rf7 {[%emt 0:06:54]} 24. c3 (24. Rd1 $5 {[%cal Rd3d6]}) 24... Rf6 {[%emt 0:00:30]} 25. Rd1 {[%emt 0:02:46]} Qf7 {[%emt 0:00:31]} 26. Qe3 {[%emt 0:00:52]} Rd7 {[%emt 0:08:16]} 27. Qe2 {[%emt 0:00:35]} Qf8 {[%emt 0:01:57] Weighted Error Value: White=0.24 (precise) /Black=0.22 (precise)} 1/2-1/2

[Event "DVM U14 2021"]
[Site "Willingen"]
[Date "2022.08.15"]
[Round "6"]
[White "Sun, Christopher"]
[Black "Sökler, Jakob"]
[Result "0-1"]
[ECO "D02"]
[WhiteElo "1091"]
[BlackElo "1571"]
[Annotator "NA RC"]
[PlyCount "91"]
[EventDate "2022.08.12"]
[EventType "team-tourn"]
[EventRounds "7"]
[EventCountry "GER"]
[SourceTitle "playchess.com"]
[Source "ChessBase"]
[SourceQuality "1"]
[TimeControl "40/5400+30:1800+30"]

1. d4 {[%emt 0:00:01]} d5 {[%emt 0:00:06]} 2. Nf3 {[%emt 0:00:11]} e6 {[%emt 0:00:08]} 3. g3 {[%emt 0:00:09]} c6 {[%emt 0:00:12]} 4. Bg2 {[%emt 0:00:31]} Nf6 {[%emt 0:00:10]} 5. O-O {[%emt 0:00:38]} Nbd7 {[%emt 0:00:34]} 6. b3 {[%emt 0:00:35]} Be7 {[%emt 0:01:47]} 7. Bb2 {[%emt 0:00:25]} O-O {[%emt 0:00:43]} 8. Nbd2 {[%emt 0:01:17]} Ne4 {[%emt 0:06:03]} 9. Nxe4 {[%emt 0:04:36]} dxe4 {[%emt 0:00:22]} 10. Ne5 {[%emt 0:01:43]} f5 {[%emt 0:00:41]} 11. e3 {[%emt 0:01:31]} Rf6 {[%emt 0:05:45]} 12. c4 {[%emt 0:01:38]} Rh6 {[%emt 0:07:13]} 13. c5 {[%emt 0:02:02]} Qe8 {[%emt 0:03:46]} 14. f4 {[%emt 0:05:00]} exf3 {[%emt 0:13:32]} 15. Bxf3 {[%emt 0:00:41]} Nxe5 {[%emt 0:01:12]} 16. dxe5 {[%emt 0:01:49]} Bxc5 {[%emt 0:01:30]} 17. Bd4 {[%emt 0:01:14]} Bxd4 {[%emt 0:02:46]} 18. exd4 {[%emt 0:00:10]} g5 {[%emt 0:05:05]} 19. Qd2 {[%emt 0:05:10]} Qg6 {[%emt 0:00:45]} 20. Rae1 {[%emt 0:02:28]} g4 {[%emt 0:01:36]} 21. Bd1 {[%emt 0:01:48]} Bd7 {[%emt 0:01:15]} 22. Qb4 {[%emt 0:00:50]} b6 {[%emt 0:12:59]} 23. Qd6 {[%emt 0:00:33]} Qe8 {[%emt 0:02:41]} 24. Rxf5 {[%emt 0:04:22]} exf5 {[%emt 0:02:07]} 25. Qxh6 {[%emt 0:01:06]} Qe6 {[%emt 0:01:23]} 26. Qg5+ {[%emt 0:01:51]} Kh8 {[%emt 0:00:29]} 27. Qf6+ {[%emt 0:01:17]} Qxf6 {[%emt 0:00:20]} 28. exf6 {[%emt 0:00:33]} Re8 {[%emt 0:00:30]} 29. Rxe8+ {[%emt 0:01:04]} Bxe8 {[%emt 0:00:07]} 30. b4 {[%emt 0:00:44]} Kg8 {[%emt 0:00:43]} 31. Bb3+ {[%emt 0:00:26]} Bf7 {[%emt 0:00:30]} 32. Bxf7+ {[%emt 0:00:45]} Kxf7 {[%emt 0:00:05]} 33. Kf2 {[%emt 0:00:36]} Kxf6 {[%emt 0:00:11]} 34. Ke3 {[%emt 0:00:55]} Ke6 {[%emt 0:01:24]} 35. Kd2 {[%emt 0:02:47]} Kd5 {[%emt 0:02:17]} 36. Kc3 {[%emt 0:03:09]} b5 {[%emt 0:01:30]} 37. Kd3 {[%emt 0:01:50]} a6 {[%emt 0:00:19]} 38. a3 {[%emt 0:01:56]} h6 {[%emt 0:01:32]} 39. Ke3 {[%emt 0:02:16]} Ke6 {[%emt 0:08:36]} 40. Kf4 {[%emt 0:04:06]} Kf6 {[%emt 0:00:19]} 41. Ke3 {[%emt 0:30:40]} Kg5 {[%emt 0:30:21]} 42. Kf2 {[%emt 0:07:09]} f4 {[%emt 0:00:22]} 43. gxf4+ {[%emt 0:00:48]} Kxf4 {[%emt 0:00:07]} 44. Kg2 {[%emt 0:00:15]} h5 {[%emt 0:02:48]} 45. Kf2 {[%emt 0:01:40]} h4 {[%emt 0:00:33]} 46. Kg2 {[%emt 0:22:17]} 0-1

[Event "DVM U14 2021"]
[Site "Willingen"]
[Date "2022.08.16"]
[Round "7"]
[White "Sidletskyi, Ivan"]
[Black "Isbilir, Levin"]
[Result "1-0"]
[ECO "B35"]
[WhiteElo "2075"]
[BlackElo "1629"]
[Annotator "TA"]
[PlyCount "93"]
[EventDate "2022.08.12"]
[EventType "team-tourn"]
[EventRounds "7"]
[EventCountry "GER"]
[SourceTitle "playchess.com"]
[Source "ChessBase"]
[SourceQuality "1"]
[TimeControl "40/5400+30:1800+30"]

{[%evp 18,93,54,30,81,79,77,65,70,61,58,62,62,63,110,95,114,105,135,114,152,151,155,43,116,39,241,129,122,117,126,112,147,146,173,157,197,93,170,171,257,246,243,267,258,0,214,213,260,232,253,272,258,215,273,162,346,139,201,201,201,200,500,518,664,520,478,506,512,509,598,588,637,597,778,748,884,852]} 1. e4 {[%emt 0:00:21]} c5 {[%emt 0:01:41]} 2. Nf3 {[%emt 0:00:18]} Nc6 {[%emt 0:00:23]} 3. Nc3 {[%emt 0:00:44]} g6 {[%emt 0:00:36]} 4. d4 {[%emt 0:00:17]} cxd4 {[%emt 0:00:09]} 5. Nxd4 {[%emt 0:00:13]} Bg7 {[%emt 0:00:45]} 6. Be3 {[%emt 0:00:14]} Nf6 {[%emt 0:01:05]} 7. Bc4 {[%emt 0:00:18]} O-O {[%emt 0:01:07]} 8. Bb3 {[%emt 0:00:58]} a5 {[%emt 0:05:41]} 9. O-O {[%emt 0:01:21]} d6 {[%emt 0:09:55]} 10. f3 {[%emt 0:01:05]} Bd7 {[%emt 0:02:36] B35: Sicilian: Accelerated Dragon with 5 Nc3: main line.} (10... Nxd4 $1 $11 {remains equal.} 11. Bxd4 (11. Qxd4 Ng4 $15) 11... Be6) 11. Ndb5 $1 $16 {[%emt 0:09:02]} Ne5 {[%emt 0:01:43][%cal Oa5a4] ...a4! is the strong threat.} 12. Qe2 {[%emt 0:10:04] was the old line (12.a4).} Bxb5 {[%emt 0:01:02] White is slightly better.} 13. Qxb5 {[%emt 0:00:20]} Qd7 {[%emt 0:10:02]} 14. a4 {[%emt 0:01:05][%cal Ba2a4,Ba4b5][%mdl 32] [#]} Qxb5 $146 {[%emt 0:00:46]} ({Predecessor:} 14... Rfc8 15. Qe2 Qc6 16. Nb5 Ned7 17. c3 Nc5 18. Bc2 Ne8 19. Nd4 Qa6 20. Qd2 b6 {½-½ (29) Wen,Y (2508)-Nguyen,V (2422) Al Ain 2008}) 15. axb5 {[%emt 0:04:34]} Ned7 {[%emt 0:04:46]} (15... Rfc8 $14) 16. Rfd1 {[%emt 0:04:40]} Rfc8 {[%emt 0:02:37] [#]} 17. Na4 $1 {[%emt 0:07:29]} Ne8 {[%emt 0:04:30]} 18. f4 {[%emt 0:11:43]} Nc7 {[%emt 0:04:18]} 19. e5 {[%emt 0:04:11]} Nxb5 {[%emt 0:05:03]} 20. c4 {[%emt 0:01:17]} (20. e6 $16 Nc5 21. Bxc5 (21. exf7+ Kf8 $16) 21... dxc5 22. exf7+ Kf8 23. Be6) 20... Na7 {[%emt 0:01:13] [#]} ({Black should play} 20... Nc7 $14) 21. exd6 {[%emt 0:01:37]} (21. c5 $1 $16 {[%cal Rc5d6]} Nxc5 22. Bxc5 dxc5 23. Nb6) 21... e6 $2 {[%emt 0:01:46]} (21... Re8 $14) 22. c5 {[%emt 0:00:37]} (22. Nb6 $18 Nxb6 23. Bxb6) 22... Nc6 {[%emt 0:03:55]} 23. Rac1 {[%emt 0:08:08]} Rd8 {[%emt 0:01:05]} 24. g4 {[%emt 0:02:20]} Kh8 {[%emt 0:05:10]} 25. h3 {[%emt 0:02:27]} Re8 {[%emt 0:04:18]} 26. Bf2 {[%emt 0:03:12]} f5 {[%emt 0:05:02]} 27. Nc3 {[%emt 0:06:40]} (27. Nb6 $18 {and White stays clearly on top.} Rad8 28. Nxd7 Rxd7 29. Re1) 27... e5 {[%emt 0:01:47]} (27... fxg4 $16 28. hxg4 Rad8) 28. Nd5 $18 {[%emt 0:00:33][%cal Bc3d5,Bd5c7,Bc7e6][%mdl 32]} Rac8 {[%emt 0:00:36]} (28... a4 $142) 29. Nc7 {[%emt 0:01:16]} Red8 {[%emt 0:00:17]} 30. Ne6 {[%emt 0:00:08]} Re8 {[%emt 0:07:23]} 31. Nc7 {[%emt 0:01:13]} Red8 {[%emt 0:01:20]} 32. Be6 {[%emt 0:01:22]} fxg4 {[%emt 0:00:46]} 33. Bh4 {[%emt 0:00:54]} (33. Bxg4 $6 h5 $18) 33... exf4 {[%emt 0:02:18]} 34. Bxd8 {[%emt 0:00:07]} (34. hxg4 $6 Bxb2 35. Bxd8 Rxd8 $18) (34. Bxg4 Bxb2 35. Bxd8 Rxd8 $18) 34... Rxd8 {[%emt 0:01:28]} 35. Bxg4 {[%emt 0:00:44]} ({Don't take} 35. hxg4 $6 Bd4+ 36. Kf1 Nxc5 $16) 35... Bxb2 {[%emt 0:05:57]} 36. Rc4 {[%emt 0:04:11]} (36. Bxd7 $142 Rxd7 37. Rc4) 36... Ba3 $2 {[%emt 0:00:38]} (36... Nce5 {was worth a try.} 37. Ne6 (37. Rxf4 Nxc5 38. Ne6 Nxe6 $16) 37... Nxc4 38. Nxd8 Nxc5) 37. Ne6 {[%emt 0:00:31]} (37. Rxf4 Nxc5 38. Kg2 Bb4 $16) (37. Bxd7 $18 {and the rest is easy.} Rxd7 38. Ne6) 37... Re8 {[%emt 0:00:55]} (37... Rg8 $16 38. Rxf4 (38. Nxf4 Bxc5+ 39. Kg2 Nce5 $18) 38... Bxc5+ 39. Kg2 Rb8) 38. Nxf4 {[%emt 0:03:36]} Bxc5+ {[%emt 0:00:50]} 39. Kg2 {[%emt 0:01:17]} Nce5 {[%emt 0:02:43]} (39... Ncb8 {might work better.} 40. Ne6 b6 41. Nxc5 bxc5) 40. Re4 {[%emt 0:06:59] Strongly threatening Bxd7. White is clearly winning.} Rf8 {[%emt 0:00:00]} 41. Ne6 {[%emt 0:01:49]} Rf2+ {[%emt 0:05:31]} 42. Kg3 {[%emt 0:07:22]} Bb6 {[%emt 0:08:37]} 43. Nf4 {[%emt 0:06:22] Active counter play!} Rc2 {[%emt 0:08:29]} 44. Bxd7 {[%emt 0:02:32]} Bf2+ {[%emt 0:01:16]} 45. Kh2 {[%emt 0:10:45]} Bh4+ {[%emt 0:00:30]} 46. Ng2 {[%emt 0:00:21]} Nxd7 {[%emt 0:00:05]} 47. Rxh4 {[%emt 0:49:25] Weighted Error Value: White=0.35/Black=0.54} 1-0

[Event "DVM U14 2021"]
[Site "Willingen"]
[Date "2022.08.16"]
[Round "7"]
[White "Fuhrmann, Bahne"]
[Black "Malinowsky, Levi"]
[Result "1/2-1/2"]
[ECO "A52"]
[WhiteElo "1973"]
[BlackElo "1814"]
[Annotator "TA"]
[PlyCount "71"]
[EventDate "2022.08.12"]
[EventType "team-tourn"]
[EventRounds "7"]
[EventCountry "GER"]
[SourceTitle "playchess.com"]
[Source "ChessBase"]
[SourceQuality "1"]
[TimeControl "40/5400+30:1800+30"]

{[%evp 12,71,37,37,48,50,40,23,35,36,58,50,56,45,38,47,57,-16,-10,-13,14,-29,-17,-13,100,80,83,0,16,0,0,0,0,0,0,0,0,0,0,0,0,0,0,0,0,0,0,0,0,0,0,0,0,0,0,0,0,0,0,0,0,-16]} 1. d4 {[%emt 0:00:07][%cal Bd2d4,Bd4e5][%mdl 32]} Nf6 {[%emt 0:00:00]} 2. c4 {[%emt 0:00:17]} e5 {[%emt 0:00:04]} 3. dxe5 {[%emt 0:00:19]} Ng4 {[%emt 0:02:17]} 4. Nf3 {[%emt 0:01:11]} Nc6 {[%emt 0:08:57]} 5. Bg5 {[%emt 0:04:00]} Be7 {[%emt 0:02:20]} 6. Bxe7 {[%emt 0:00:13]} Qxe7 {[%emt 0:05:39]} 7. Nc3 {[%emt 0:04:48]} Ncxe5 {[%emt 0:07:30] A52: Budapest Gambit.} 8. Nd5 {[%emt 0:06:29][%csl LRc7,LRe7]} Qd6 {[%emt 0:02:12]} 9. e3 {[%emt 0:03:53] White wants to play Nxe5.} c6 {[%emt 0:01:32] White has an edge.} 10. Nc3 {[%emt 0:02:36]} Qxd1+ {[%emt 0:00:18]} 11. Rxd1 {[%emt 0:00:41]} Nxf3+ {[%emt 0:00:07]} 12. gxf3 {[%emt 0:00:55]} Nf6 {[%emt 0:12:49]} 13. Rg1 {[%emt 0:03:21]} (13. Ne4 {is interesting.} Ke7 14. Nd6 Ne8 15. c5) 13... g6 {[%emt 0:06:15] [#]} 14. e4 $146 {[%emt 0:07:16]} (14. Rg5 $14) ({Predecessor:} 14. Rg5 O-O 15. Bh3 Rd8 16. Ra5 Kf8 17. Ne4 Ne8 18. f4 f6 19. Ra3 b6 20. Nd6 Nxd6 21. Rxd6 {1-0 (27) Flear,G (2459)-Van de Wynkele,E (2074) Lille 2012}) 14... Nh5 {[%emt 0:08:36]} 15. Rd4 {[%emt 0:04:10]} (15. Be2 {looks sharper.} Ke7 16. e5 f5 17. Rd4) 15... f6 {[%emt 0:05:16]} 16. c5 {[%emt 0:04:47]} Nf4 {[%emt 0:00:31]} (16... Ke7 {is more complex.} 17. Bc4 b6 18. b4 a5) 17. Bc4 {[%emt 0:06:15]} Ne6 {[%emt 0:02:01]} (17... b6 $11) 18. Bxe6 $16 {[%emt 0:02:11] 0x0.0020afddee17dp-1022s more active pieces. The black rooks are badly placed.} dxe6 {[%emt 0:06:35]} 19. Ke2 {[%emt 0:02:24]} (19. f4 $16) 19... Ke7 {[%emt 0:02:37] The position is equal.} (19... e5 $5 {[%cal Re5d4]} 20. Rd6 Ke7 $11) 20. f4 {[%emt 0:04:45]} e5 {[%emt 0:01:12]} 21. fxe5 {[%emt 0:00:12]} fxe5 {[%emt 0:01:38]} 22. Rd6 {[%emt 0:02:25] [#] And now Rg5 would win.} Be6 {[%emt 0:06:37]} 23. Ke3 {[%emt 0:02:26]} Rad8 {[%emt 0:01:49]} 24. Rxd8 {[%emt 0:00:21]} Rxd8 $11 {[%emt 0:00:43][%mdl 4096] Endgame KRB-KRN} 25. b3 {[%emt 0:01:24] Prevents Bc4.} Rf8 {[%emt 0:00:33]} 26. Ne2 {[%emt 0:02:50]} a5 {[%emt 0:01:13]} 27. f4 {[%emt 0:00:31]} exf4+ {[%emt 0:00:06]} 28. Nxf4 {[%emt 0:01:21]} Ra8 {[%emt 0:04:50]} 29. Rg5 {[%emt 0:03:23] [#] Hoping for Re5.} Kf6 {[%emt 0:02:14] Inhibits Re5.} 30. Nxe6 {[%emt 0:00:07]} Kxe6 {[%emt 0:00:06] KR-KR} 31. a3 {[%emt 0:02:08]} Rd8 {[%emt 0:00:58]} 32. Rg1 {[%emt 0:02:04] Against Rd1} Ke5 {[%emt 0:00:06]} 33. h4 {[%emt 0:01:37]} Rg8 {[%emt 0:01:00]} 34. Rf1 {[%emt 0:03:47]} Ke6 {[%emt 0:01:55]} 35. Rf4 {[%emt 0:00:52]} h6 {[%emt 0:04:22]} 36. Rg4 {Weighted Error Value: White=0.10 (very precise) /Black=0.13 (very precise)} 1/2-1/2

[Event "DVM U14 2021"]
[Site "Willingen"]
[Date "2022.08.16"]
[Round "7"]
[White "Schwartz, Oliver"]
[Black "Helmbrecht, Paul"]
[Result "1/2-1/2"]
[ECO "D37"]
[WhiteElo "1872"]
[BlackElo "1661"]
[Annotator "NA RC"]
[PlyCount "61"]
[EventDate "2022.08.12"]
[EventType "team-tourn"]
[EventRounds "7"]
[EventCountry "GER"]
[SourceTitle "playchess.com"]
[Source "ChessBase"]
[SourceQuality "1"]
[TimeControl "40/5400+30:1800+30"]

{[%evp 11,60,36,33,15,20,37,27,32,65,-14,-22,-22,-37,-35,0,0,21,-4,70,66,32767,32767,32767,32767,32767,32767,32767,118,32767,202,32767,32767,32767,32767,273,32767,311,343,351,262,32767,194,199,197,32767,32767,72,32767,32767,67,82]} 1. d4 {[%emt 0:00:03]} Nf6 {[%emt 0:00:00]} 2. c4 {[%emt 0:00:03]} e6 {[%emt 0:00:00]} 3. Nf3 {[%emt 0:00:04]} d5 {[%emt 0:00:02]} 4. Nc3 {[%emt 0:00:03]} Be7 {[%emt 0:02:20]} 5. Bf4 {[%emt 0:01:23]} c6 {[%emt 0:04:30]} 6. e3 {[%emt 0:02:21]} Nh5 {[%emt 0:04:20]} 7. Bg3 {[%emt 0:00:33]} Nxg3 {[%emt 0:00:06]} 8. hxg3 {[%emt 0:01:10]} Nd7 {[%emt 0:02:34]} 9. Qc2 {[%emt 0:00:54]} Nf6 {[%emt 0:05:25]} (9... h6 $11) 10. cxd5 {[%emt 0:00:14]} (10. Ne5 $14) 10... exd5 {[%emt 0:00:39]} 11. Bd3 {[%emt 0:07:28]} h6 {[%emt 0:06:16]} 12. O-O-O {[%emt 0:03:15]} Be6 {[%emt 0:08:05]} (12... Bd6 $1 $15) 13. Kb1 {[%emt 0:13:09]} Qa5 {[%emt 0:09:16]} 14. Ne2 {[%emt 0:08:17]} c5 {[%emt 0:12:45]} (14... Bd6 $11) 15. Nf4 {[%emt 0:08:38]} Bg4 {[%emt 0:04:54]} 16. Rc1 {[%emt 0:02:05]} c4 {[%emt 0:02:16]} 17. Bf5 {[%emt 0:07:44]} Qb5 {[%emt 0:12:01]} 18. Ne5 {[%emt 0:00:53]} Bxf5 {[%emt 0:00:11]} 19. Qxf5 {[%emt 0:03:02]} Rf8 {[%emt 0:02:24]} 20. Nxc4 {[%emt 0:04:02]} Qd7 {[%emt 0:00:41]} 21. Qxd7+ {[%emt 0:00:16]} Kxd7 {[%emt 0:00:50]} 22. Ne5+ {[%emt 0:02:43]} Kd6 {[%emt 0:01:07]} (22... Kd8 $142 23. Nh5 Nxh5) 23. Rc2 {[%emt 0:04:49]} g5 {[%emt 0:03:27]} 24. Nfd3 {[%emt 0:01:22]} ({Not} 24. Rxh6 gxf4 25. gxf4 Rac8 $16) 24... h5 {[%emt 0:00:18]} 25. Rhc1 {[%emt 0:00:37]} Bd8 {[%emt 0:02:11]} 26. Nc5 {[%emt 0:02:38]} Rb8 {[%emt 0:00:40]} 27. Rc3 {[%emt 0:01:09]} Bb6 {[%emt 0:02:35]} 28. Rb3 {[%emt 0:01:10]} Bxc5 $16 {[%emt 0:00:06]} 29. Rxc5 {[%emt 0:00:04]} Ne4 {[%emt 0:00:30]} 30. Rc2 {[%emt 0:00:23]} f6 {[%emt 0:00:59]} 31. Nd3 {[%emt 0:00:36]} 1/2-1/2